[Event "51st Rilton Cup 2023-24"]
[Site "Stockholm"]
[Date "2024.01.04"]
[Round "8.24"]
[White "Lim, Zhuo Ren"]
[Black "Shohat, Yotam"]
[Result "0-1"]
[ECO "E73"]
[WhiteElo "2218"]
[BlackElo "2332"]
[Annotator "RC"]
[PlyCount "83"]
[EventDate "2023.12.27"]
[EventType "swiss"]
[EventCountry "SWE"]
[SourceTitle "playchess.com"]
[Source "ChessBase"]
[SourceQuality "1"]
[TimeControl "40/5400+30:1800+30"]

1. d4 {[%emt 0:00:39]} Nf6 {[%emt 0:00:26]} 2. c4 {[%emt 0:00:06]} g6 {[%emt 0:00:00]} 3. Nc3 {[%emt 0:00:10]} Bg7 {[%emt 0:00:23]} 4. e4 {[%emt 0:00:07]} O-O {[%emt 0:00:00]} 5. Be2 {[%emt 0:00:10]} d6 {[%emt 0:00:00]} 6. Be3 {[%emt 0:00:06]} c5 {[%emt 0:00:00]} 7. e5 {[%emt 0:02:12]} dxe5 {[%emt 0:14:04]} 8. dxe5 {[%emt 0:00:19]} Nfd7 {[%emt 0:04:23]} 9. f4 {[%emt 0:00:35]} Nc6 {[%emt 0:00:29]} 10. Nf3 {[%emt 0:00:25]} f6 {[%emt 0:15:13]} 11. O-O {[%emt 0:04:33]} fxe5 {[%emt 0:05:21]} 12. Qd5+ {[%emt 0:02:33]} e6 {[%emt 0:01:41]} 13. Qxe6+ {[%emt 0:03:29]} Kh8 {[%emt 0:00:01]} 14. fxe5 {[%emt 0:08:37]} Ndxe5 {[%emt 0:05:45]} 15. Qd5 {[%emt 0:00:20]} Nxf3+ {[%emt 0:06:14]} 16. Bxf3 {[%emt 0:01:21]} Nd4 {[%emt 0:00:44]} 17. Qxc5 {[%emt 0:16:31]} Nxf3+ {[%emt 0:02:54]} 18. Rxf3 {[%emt 0:00:13]} Rxf3 {[%emt 0:00:23]} 19. gxf3 {[%emt 0:00:03]} Bh3 {[%emt 0:17:03]} 20. Rd1 {[%emt 0:03:42]} Qf6 {[%emt 0:02:06]} 21. Qd5 {[%emt 0:09:09]} Rf8 {[%emt 0:22:01]} 22. f4 {[%emt 0:13:29]} Re8 {[%emt 0:01:35]} 23. Qf3 {[%emt 0:03:13]} Qe6 {[%emt 0:00:14]} 24. Re1 {[%emt 0:01:05]} h5 {[%emt 0:00:43]} 25. Qg3 {[%emt 0:01:38]} Qf5 {[%emt 0:00:38]} 26. Nd1 {[%emt 0:01:20]} Qd7 {[%emt 0:00:36]} 27. Nf2 {[%emt 0:04:59]} Bf5 {[%emt 0:00:03]} 28. b3 {[%emt 0:01:25]} Kh7 {[%emt 0:00:28]} 29. Rd1 {[%emt 0:00:41]} Qe6 {[%emt 0:00:27]} 30. Re1 {[%emt 0:03:00]} Qa6 {[%emt 0:00:26]} 31. Nh3 {[%emt 0:00:52]} Bxh3 {[%emt 0:00:13]} 32. Qxh3 {[%emt 0:00:02]} Qxa2 {[%emt 0:00:32]} 33. f5 {[%emt 0:01:03]} Qc2 {[%emt 0:00:54]} 34. Rf1 {[%emt 0:04:58]} Qd3 {[%emt 0:00:13]} 35. Rf3 {[%emt 0:01:24]} Rxe3 {[%emt 0:00:43]} 36. Rxe3 {[%emt 0:00:32]} Bd4 {[%emt 0:00:04]} 37. fxg6+ {[%emt 0:00:10]} Kh6 {[%emt 0:00:07]} 38. Kf2 {[%emt 0:03:05]} Qd2+ {[%emt 0:00:10]} 39. Kf1 {[%emt 0:00:04]} Qxe3 {[%emt 0:00:16]} 40. Qf5 {[%emt 0:00:20]} Qg1+ {[%emt 0:00:34]} 41. Ke2 {[%emt 0:30:03]} Qg4+ {[%emt 0:30:12]} 42. Kd3 {[%emt 0:00:21]} 0-1

[Event "51st Rilton Cup 2023-24"]
[Site "Stockholm"]
[Date "2024.01.04"]
[Round "8.25"]
[White "Hedman, Erik"]
[Black "Doraszelski, Alexander"]
[Result "1-0"]
[ECO "B06"]
[WhiteElo "2323"]
[BlackElo "2198"]
[Annotator "RC"]
[PlyCount "89"]
[EventDate "2023.12.27"]
[EventType "swiss"]
[EventCountry "SWE"]
[SourceTitle "playchess.com"]
[Source "ChessBase"]
[SourceQuality "1"]
[TimeControl "40/5400+30:1800+30"]

1. e4 {[%emt 0:00:02]} c5 {[%emt 0:00:07]} 2. c3 {[%emt 0:00:04]} d5 {[%emt 0:00:06]} 3. exd5 {[%emt 0:00:06]} Qxd5 {[%emt 0:00:05]} 4. d4 {[%emt 0:00:09]} g6 {[%emt 0:00:25]} 5. Nf3 {[%emt 0:00:29]} Bg7 {[%emt 0:00:08]} 6. Nbd2 {[%emt 0:00:17]} cxd4 {[%emt 0:01:16]} 7. Bc4 {[%emt 0:00:50]} Qd8 {[%emt 0:00:51]} 8. Nxd4 {[%emt 0:00:31]} Nf6 {[%emt 0:01:13]} 9. O-O {[%emt 0:00:22]} O-O {[%emt 0:00:53]} 10. Qe2 {[%emt 0:02:10]} Nc6 {[%emt 0:14:46]} 11. Nxc6 {[%emt 0:01:22]} bxc6 {[%emt 0:00:35]} 12. Re1 {[%emt 0:00:16]} e6 {[%emt 0:02:03]} 13. Nf3 {[%emt 0:01:24]} a5 {[%emt 0:06:51]} 14. Bg5 {[%emt 0:05:01]} Qb6 {[%emt 0:05:21]} 15. Be3 {[%emt 0:11:49]} Qc7 {[%emt 0:05:18]} 16. Bd4 {[%emt 0:01:23]} a4 {[%emt 0:02:58]} 17. Qe5 {[%emt 0:03:47]} Qxe5 {[%emt 0:08:31]} 18. Nxe5 {[%emt 0:02:55]} Ba6 {[%emt 0:00:00]} 19. Bxa6 {[%emt 0:00:54]} Rxa6 {[%emt 0:00:00]} 20. Rad1 {[%emt 0:09:49]} Rd8 {[%emt 0:07:52]} 21. Kf1 {[%emt 0:03:46]} Ne8 {[%emt 0:06:40]} 22. f4 {[%emt 0:02:50]} Nc7 {[%emt 0:11:17]} 23. c4 {[%emt 0:05:02]} f6 {[%emt 0:08:23]} 24. Nf3 {[%emt 0:11:55]} Kf7 {[%emt 0:01:04]} 25. g4 {[%emt 0:04:20]} h6 {[%emt 0:07:34]} 26. h4 {[%emt 0:04:30]} Ne8 {[%emt 0:02:02]} 27. Bc5 {[%emt 0:11:06]} Rxd1 {[%emt 0:01:12]} 28. Rxd1 {[%emt 0:00:04]} Bf8 {[%emt 0:00:08]} 29. Rd7+ {[%emt 0:01:24]} Kg8 {[%emt 0:00:10]} 30. Bd4 {[%emt 0:06:15]} a3 {[%emt 0:01:51]} 31. b3 {[%emt 0:00:39]} Bb4 {[%emt 0:02:13]} 32. g5 {[%emt 0:01:18]} hxg5 {[%emt 0:00:57]} 33. hxg5 {[%emt 0:00:05]} fxg5 {[%emt 0:01:01]} 34. Nxg5 {[%emt 0:00:23]} Bf8 {[%emt 0:01:51]} 35. Rd8 {[%emt 0:02:10]} c5 {[%emt 0:00:24]} 36. Rxe8 {[%emt 0:05:37]} cxd4 {[%emt 0:00:09]} 37. Nxe6 {[%emt 0:00:04]} Kf7 {[%emt 0:00:16]} 38. Rxf8+ {[%emt 0:00:07]} Kxe6 {[%emt 0:00:05]} 39. Rd8 {[%emt 0:00:11]} Kf5 {[%emt 0:01:56]} 40. Rxd4 {[%emt 0:00:11]} Kg4 {[%emt 0:00:08]} 41. Kf2 {[%emt 0:33:19]} Ra8 {[%emt 0:30:38]} 42. c5 {[%emt 0:00:00]} Rh8 {[%emt 0:00:00]} 43. c6 {[%emt 0:00:00]} Rh2+ {[%emt 0:00:00]} 44. Ke3 {[%emt 0:00:00]} Rh3+ {[%emt 0:00:00]} 45. Ke4 {[%emt 0:00:00]} 1-0

[Event "51st Rilton Cup 2023-24"]
[Site "Stockholm"]
[Date "2024.01.04"]
[Round "8.26"]
[White "Borgaonkar Akshay"]
[Black "Dragicevic, Drazen"]
[Result "1/2-1/2"]
[ECO "C67"]
[WhiteElo "2206"]
[BlackElo "2322"]
[Annotator "RC"]
[PlyCount "79"]
[EventDate "2023.12.27"]
[EventType "swiss"]
[EventCountry "SWE"]
[SourceTitle "playchess.com"]
[Source "ChessBase"]
[SourceQuality "1"]
[TimeControl "40/5400+30:1800+30"]

1. e4 {[%emt 0:00:02]} e5 {[%emt 0:01:19]} 2. Nf3 {[%emt 0:00:06]} Nc6 {[%emt 0:00:15]} 3. Bb5 {[%emt 0:00:44]} Nf6 {[%emt 0:01:10]} 4. O-O {[%emt 0:00:52]} Nxe4 {[%emt 0:00:57]} 5. Re1 {[%emt 0:01:13]} Nd6 {[%emt 0:02:49]} 6. Nxe5 {[%emt 0:00:08]} Be7 {[%emt 0:00:11]} 7. Bf1 {[%emt 0:00:11]} Nf5 {[%emt 0:03:58]} 8. Nf3 {[%emt 0:05:34]} O-O {[%emt 0:01:45]} 9. d4 {[%emt 0:03:39]} d5 {[%emt 0:01:58]} 10. c3 {[%emt 0:04:59]} Bf6 {[%emt 0:13:46]} 11. Bd3 {[%emt 0:04:55]} g6 {[%emt 0:28:56]} 12. Bf4 {[%emt 0:04:08]} Ng7 {[%emt 0:03:55]} 13. h3 {[%emt 0:07:12]} Bf5 {[%emt 0:02:54]} 14. Na3 {[%emt 0:02:37]} Bxd3 {[%emt 0:03:16]} 15. Qxd3 {[%emt 0:00:03]} a6 {[%emt 0:01:12]} 16. Nc2 {[%emt 0:02:21]} Ne6 {[%emt 0:02:28]} 17. Bg3 {[%emt 0:02:01]} Ne7 {[%emt 0:00:53]} 18. Ne3 {[%emt 0:03:36]} c6 {[%emt 0:03:43]} 19. Ng4 {[%emt 0:02:32]} Bg7 {[%emt 0:00:38]} 20. Bh4 {[%emt 0:03:39]} Qc7 {[%emt 0:05:25]} 21. Bxe7 {[%emt 0:12:48]} Qxe7 {[%emt 0:00:09]} 22. Qe3 {[%emt 0:00:11]} Rfe8 {[%emt 0:02:54]} 23. h4 {[%emt 0:04:29]} h5 {[%emt 0:10:35]} 24. Nge5 {[%emt 0:03:58]} Nf8 {[%emt 0:01:12]} 25. Qf4 {[%emt 0:01:49]} Qf6 {[%emt 0:00:43]} 26. Qd2 {[%emt 0:05:36]} Qd6 {[%emt 0:00:37]} 27. Re2 {[%emt 0:03:13]} Re7 {[%emt 0:01:08]} 28. Rae1 {[%emt 0:02:35]} Rae8 {[%emt 0:00:06]} 29. Qf4 {[%emt 0:02:22]} Qf6 {[%emt 0:00:51]} 30. Qg3 {[%emt 0:02:24]} Qf5 {[%emt 0:00:23]} 31. Re3 {[%emt 0:03:04]} f6 {[%emt 0:01:10]} 32. Nc4 {[%emt 0:00:10]} Rxe3 {[%emt 0:01:31]} 33. Nxe3 {[%emt 0:00:13]} Qd7 {[%emt 0:00:05]} 34. Nc2 {[%emt 0:01:16]} Rxe1+ {[%emt 0:00:51]} 35. Ncxe1 {[%emt 0:00:58]} Bh6 {[%emt 0:00:25]} 36. Qb8 {[%emt 0:01:07]} Kh7 {[%emt 0:01:04]} 37. Nd3 {[%emt 0:00:46]} Ne6 {[%emt 0:00:07]} 38. g3 {[%emt 0:02:05]} Bf8 {[%emt 0:00:26]} 39. Nf4 {[%emt 0:00:37]} Nd8 {[%emt 0:01:30]} 40. Nd3 {[%emt 0:03:32]} 1/2-1/2

[Event "51st Rilton Cup 2023-24"]
[Site "Stockholm"]
[Date "2024.01.05"]
[Round "9.1"]
[White "Sokolovsky, Yahli"]
[Black "Sivuk, Vitaly"]
[Result "1/2-1/2"]
[ECO "C92"]
[WhiteElo "2443"]
[BlackElo "2490"]
[Annotator "TA"]
[PlyCount "35"]
[EventDate "2023.12.27"]
[EventType "swiss"]
[EventCountry "SWE"]
[SourceTitle "playchess.com"]
[Source "ChessBase"]
[SourceQuality "1"]
[TimeControl "40/5400+30:1800+30"]

{[%evp 34,35,22,0]} 1. e4 {[%emt 0:43:55]} e5 {[%emt 0:07:32]} 2. Nf3 {[%emt 0:00:00]} Nc6 {[%emt 0:00:05]} 3. Bb5 {[%emt 0:00:00][%cal Bf1b5,Bb5a4,Ba4b3][%mdl 32]} a6 {[%emt 0:00:08]} 4. Ba4 {[%emt 0:00:00]} Nf6 {[%emt 0:00:10]} 5. O-O {[%emt 0:00:00]} Be7 {[%emt 0:00:08]} 6. Re1 {[%emt 0:00:00]} b5 {[%emt 0:00:10]} 7. Bb3 {[%emt 0:00:00]} d6 {[%emt 0:00:09]} 8. c3 {[%emt 0:00:00]} O-O {[%emt 0:00:09]} 9. h3 {[%emt 0:00:00]} Bb7 {[%emt 0:00:08]} 10. d4 {[%emt 0:00:00]} Re8 {[%emt 0:00:08] [#]} 11. Ng5 $146 {[%emt 0:00:00]} ({Predecessor:} 11. Nbd2 Bf8 12. a3 h6 13. Bc2 Nb8 14. b3 Nbd7 15. a4 g6 16. Bb2 Bg7 17. Bd3 Bc6 18. axb5 axb5 19. Qc2 Nb6 20. d5 Bd7 21. c4 bxc4 22. bxc4 c5 23. Rxa8 Qxa8 24. Ra1 Qb7 {0-1 Carlsen,M (2835)-Firouzja,A (2777) Bullet Chess Losers blitz 2023 (6.10)}) 11... Rf8 {[%emt 0:00:04]} 12. Nf3 Re8 {[%emt 0:00:04]} 13. Ng5 {[%emt 0:00:00]} Rf8 {[%emt 0:00:06]} 14. Nf3 Re8 15. Ng5 Rf8 16. Nf3 Re8 17. Ng5 Rf8 18. Nf3 {18.Qd3 is setting a new trend.} 1/2-1/2

[Event "51st Rilton Cup 2023-24"]
[Site "Stockholm"]
[Date "2024.01.05"]
[Round "9.2"]
[White "Parkhov, Yair"]
[Black "Socko, Bartosz"]
[Result "1-0"]
[ECO "E27"]
[WhiteElo "2495"]
[BlackElo "2550"]
[Annotator "TA"]
[PlyCount "79"]
[EventDate "2023.12.27"]
[EventType "swiss"]
[EventCountry "SWE"]
[SourceTitle "playchess.com"]
[Source "ChessBase"]
[SourceQuality "1"]
[TimeControl "40/5400+30:1800+30"]

{[%evp 11,79,-4,22,9,9,-19,-4,-38,16,0,-1,-58,12,0,-14,-47,-53,-47,-60,-53,-52,-69,-64,-77,-62,-118,-56,-80,-72,-56,-12,-47,0,0,8,-13,125,104,106,129,420,417,375,200,185,214,214,224,197,203,325,316,1105,1086,949,900,1117,1122,1090,952,992,924,943,770,1932,1795,1576,1412,1010,955]} 1. d4 {[%emt 0:00:01]} Nf6 {[%emt 0:00:05]} 2. c4 {[%emt 0:00:05]} e6 {[%emt 0:00:05]} 3. Nc3 {[%emt 0:00:03]} Bb4 {[%emt 0:00:05]} 4. a3 {[%emt 0:00:04]} Bxc3+ {[%emt 0:00:44]} 5. bxc3 {[%emt 0:00:04]} O-O {[%emt 0:02:52]} 6. f3 {[%emt 0:00:04]} Ne8 {[%emt 0:00:08]} 7. e4 {[%emt 0:00:07] E27: Nimzo-Indian: Sämisch: 5...0-0 6 f3.} b6 {[%emt 0:00:05]} 8. h4 {[%emt 0:00:21][%cal Bh2h4,Bh4h5,Bh5h6][%mdl 32]} Ba6 {[%emt 0:00:34]} 9. h5 {[%emt 0:00:16] [#] The position is equal.} d5 $146 {[%emt 0:02:20]} (9... Nc6 $15) ({Predecessor:} 9... Nd6 10. Bd3 Bxc4 11. e5 Bxd3 12. Qxd3 Ne8 13. h6 g6 14. Nh3 Nc6 15. Bg5 f6 16. exf6 Nxf6 {0-1 Salem,A (2690)-Andreikin,D (2729) Chess.com Rapid Wk14 Swiss 2022 (1)}) 10. h6 {[%emt 0:07:02] hxg7 would be deadly.} g6 {[%emt 0:01:06]} 11. Nh3 {[%emt 0:06:35]} ({White should play} 11. cxd5 $11 Bxf1 12. Kxf1) 11... Nc6 {[%emt 0:17:49]} (11... dxe4 $15 12. fxe4 c5) 12. Bg5 {[%emt 0:12:08]} f6 {[%emt 0:00:49]} 13. Bh4 {[%emt 0:01:28]} (13. cxd5 $5 {[%cal Rf1a6]} Bxf1 14. Kxf1 $11) 13... dxe4 {[%emt 0:09:03]} 14. fxe4 {[%emt 0:00:17]} e5 {[%emt 0:00:06][%cal Re5d4]} 15. Qa4 {[%emt 0:08:31][%csl LRa6,LRc6]} Na5 {[%emt 0:01:10]} (15... Nxd4 $2 16. O-O-O (16. Qxa6 $2 Nc2+ 17. Ke2 Nxa1 $19) 16... g5 17. Be1 $18) 16. c5 {[%emt 0:00:57]} Bxf1 {[%emt 0:01:20]} 17. Rxf1 {[%emt 0:00:21]} Qe7 {[%emt 0:13:30] White must now prevent ...exd4.} 18. Nf2 {[%emt 0:01:55]} (18. dxe5 $15 Qxe5 19. Qd4 Qxd4 20. cxd4) 18... Rd8 {[%emt 0:13:58]} (18... c6 $17 19. Rd1 exd4 20. cxd4 Qe6) 19. Rd1 $1 $15 {[%emt 0:09:08]} exd4 {[%emt 0:01:34]} 20. cxd4 {[%emt 0:00:55]} g5 {[%emt 0:06:08]} 21. Bg3 {[%emt 0:00:25]} f5 {[%emt 0:00:05]} ({Black should try} 21... Qf7 $15) 22. Be5 $1 $11 {[%emt 0:07:01]} Qe6 {[%emt 0:00:35]} 23. Nh3 {[%emt 0:02:36][%cal Bf2h3,Bh3f4,Bf4e6][%mdl 32]} g4 {[%emt 0:03:59] Black is weak on the dark squares} (23... f4 $11) 24. Nf4 $1 $16 {[%emt 0:02:10]} Qxh6 {[%emt 0:00:06]} 25. Ke2 $1 {[%emt 0:06:28] White has more active pieces. The black rooks are badly placed.} Rf7 $2 {[%emt 0:12:31][%mdl 8192] [#] Loses the game.} (25... fxe4 $16 26. Rh1 Qc6 27. Qxc6 Nxc6) 26. d5 $1 $18 {[%emt 0:11:56] And now Rh1 would win.} Nb7 {[%emt 0:02:54]} (26... fxe4 $2 27. Rh1 Qg5 28. Rh5 $18 (28. Qxe4 Qf5 $17)) 27. Rh1 {[%emt 0:03:17]} (27. Qxa7 Nxc5 28. Rh1 Qg5 $19) (27. Qc6 $142 Nf6 28. Ne6 (28. Bxc7 $2 {perishes.} Na5 $19)) 27... Nxc5 {[%emt 0:00:05]} 28. Rxh6 {[%emt 0:05:07]} Nxa4 {[%emt 0:00:05] A dynamic duo of knights.} 29. Ne6 {[%emt 0:00:08] Prevents Nc5.} Rdd7 {[%emt 0:02:53] [#]} 30. Rdh1 $1 {[%emt 0:01:46]} fxe4 {[%emt 0:02:07]} (30... Nc5 {might work better.}) 31. R1h4 {[%emt 0:02:37]} Nc5 $2 {[%emt 0:03:22]} (31... g3 32. Rg4+ (32. Rxe4 Rf2+ 33. Ke3 Rxd5 $18) 32... Ng7 33. Rxg3 (33. Bxg7 Rxg7 34. Rxg7+ Rxg7 $16) 33... b5 34. Nxg7 Rxg7) 32. Rxg4+ {[%emt 0:00:08] White is clearly winning.} Ng7 {[%emt 0:00:15]} 33. Bxg7 {[%emt 0:00:51]} ({Less strong is} 33. Rxg7+ Rxg7 34. Nxg7 Rxd5 $16) 33... Rxg7 {[%emt 0:00:33]} 34. Nxg7 {[%emt 0:00:08]} Rxg7 {[%emt 0:00:08]} 35. Rxg7+ {[%emt 0:00:05]} Kxg7 {[%emt 0:00:05] KR-KN} 36. Rc6 {[%emt 0:00:09]} a5 {[%emt 0:00:35]} 37. Ke3 {[%emt 0:01:16]} h5 {[%emt 0:00:17]} 38. Rxc7+ {[%emt 0:01:09]} Kf6 {[%emt 0:00:04]} 39. Kf4 {[%emt 0:00:34]} e3 {[%emt 0:00:31]} 40. Rc6+ {[%emt 0:00:10] A cool game by Parkhov.   Weighted Error Value: White=0.20 (precise) /Black=0.41} 1-0

[Event "51st Rilton Cup 2023-24"]
[Site "Stockholm"]
[Date "2024.01.05"]
[Round "9.3"]
[White "Trost, Edvin"]
[Black "Prraneeth Vuppala"]
[Result "1/2-1/2"]
[ECO "E08"]
[WhiteElo "2434"]
[BlackElo "2515"]
[Annotator "TA"]
[PlyCount "159"]
[EventDate "2023.12.27"]
[EventType "swiss"]
[EventCountry "SWE"]
[SourceTitle "playchess.com"]
[Source "ChessBase"]
[SourceQuality "1"]
[TimeControl "40/5400+30:1800+30"]

{[%evp 17,159,5,30,34,18,14,13,0,8,0,18,0,16,2,10,8,41,0,0,0,0,0,0,-20,-35,-17,-29,-37,-33,-35,-8,-12,-15,-7,-6,-15,0,13,47,46,33,36,60,58,70,48,70,75,84,93,83,86,202,83,78,84,84,81,97,98,90,68,64,64,114,114,133,133,130,90,271,88,99,99,107,93,83,56,65,63,57,50,77,26,50,50,50,50,50,50,59,66,100,14,16,0,118,100,96,50,95,95,125,112,182,185,177,152,197,200,188,196,173,183,204,154,202,165,164,164,164,159,159,0,108,113,112,79,114,3,3,0,0,0,0,0,0,0,10,0,0,0,0,0]} 1. d4 {[%emt 0:00:01]} Nf6 {[%emt 0:06:36]} 2. c4 {[%emt 0:00:09]} e6 {[%emt 0:00:15]} 3. Nf3 {[%emt 0:00:12]} d5 {[%emt 0:00:18]} 4. g3 {[%emt 0:00:04]} Bb4+ {[%emt 0:01:34]} 5. Bd2 {[%emt 0:02:08]} Be7 {[%emt 0:00:15]} 6. Bg2 {[%emt 0:00:40]} O-O {[%emt 0:00:14]} 7. O-O {[%emt 0:01:10]} Nbd7 {[%emt 0:01:09]} 8. Qc2 {[%emt 0:00:07]} c6 {[%emt 0:00:43]} 9. Bf4 {[%emt 0:00:20]} a5 {[%emt 0:01:30]} 10. Rd1 {[%emt 0:02:55] E08: Closed Catalan: Main Line: 7 Qc2.} h6 {[%emt 0:00:39]} 11. Ne5 {[%emt 0:02:20]} Nh5 {[%emt 0:14:39]} 12. Bc1 {[%emt 0:01:34]} Nhf6 {[%emt 0:01:32]} 13. Bf4 {[%emt 0:02:56]} (13. Nxd7 {simplifies} Bxd7 14. b3 a4 15. Bb2) 13... Nh5 {[%emt 0:01:31]} 14. Bc1 {[%emt 0:01:57]} Nhf6 {[%emt 0:00:40]} 15. Nxd7 {[%emt 0:02:13]} Bxd7 {[%emt 0:05:08] [#]} 16. b3 $146 {[%emt 0:00:06]} ({Predecessor:} 16. Nd2 c5 17. cxd5 exd5 18. dxc5 Rc8 19. Qd3 Qe8 20. Nb3 a4 21. Nd4 Bxc5 22. Bf4 {½-½ Lampert,J (2537)-Cyborowski,L (2490) Bundesliga 2223 2022 (13.3)}) 16... Rc8 {[%emt 0:05:59]} (16... a4 $5) 17. Ba3 {[%emt 0:08:59]} c5 {[%emt 0:04:00]} 18. cxd5 {[%emt 0:02:09]} cxd4 {[%emt 0:00:22]} 19. Qb2 {[%emt 0:00:27]} Nxd5 {[%emt 0:03:18][%cal Oe7f6]} 20. Bxd5 {[%emt 0:02:18]} exd5 {[%emt 0:02:56]} 21. Bxe7 {[%emt 0:00:27]} Qxe7 {[%emt 0:00:03]} 22. Rxd4 {[%emt 0:06:41] White is weak on the light squares} Qf6 {[%emt 0:09:07] White must now prevent ...Rfe8.} (22... Qe5 {is more complex.} 23. Nd2 Qxe2 24. Rxd5 Bc6) 23. Na3 {[%emt 0:05:56]} Rc5 {[%emt 0:08:45]} 24. Rd2 {[%emt 0:04:26][%cal Bd4d2,Bd2b2,Bb2b4][%mdl 32]} Qxb2 {[%emt 0:06:33]} 25. Rxb2 {[%emt 0:00:07]} Rfc8 {[%emt 0:00:03]} 26. Rd1 {[%emt 0:00:56]} b5 {[%emt 0:05:52]} 27. Rdd2 {[%emt 0:04:06]} ({Not} 27. Rbd2 $2 Bf5 28. g4 (28. Rxd5 $2 Rxd5 29. Rxd5 Rc1+ 30. Kg2 Be4+ 31. f3 Bxd5 $19) 28... Bxg4 $17) 27... Bf5 {[%emt 0:13:40] ...b4 is the strong threat.} 28. b4 $1 {[%emt 0:00:05]} axb4 {[%emt 0:00:03]} 29. Rxb4 {[%emt 0:00:05]} Bh3 {[%emt 0:00:06] ( -> ...Rc1+)} 30. f3 $1 {[%emt 0:01:10]} Rc1+ {[%emt 0:06:17]} 31. Kf2 {[%emt 0:00:06]} R8c3 {[%emt 0:00:22][%csl Gh3][%cal Rc1f1]} 32. Rb1 {[%emt 0:00:52]} b4 {[%emt 0:00:32]} 33. Rxc1 {[%emt 0:00:14]} Rxc1 $16 {[%emt 0:00:01][%mdl 4096] Endgame KRB-KRN} 34. Nc2 {[%emt 0:00:02]} Rf1+ {[%emt 0:01:27]} 35. Ke3 {[%emt 0:00:02]} Rb1 {[%emt 0:00:10]} 36. Rxd5 {[%emt 0:16:04]} Rb2 {[%emt 0:01:31][%csl LRa2,LRc2]} 37. Rd2 {[%emt 0:00:05]} b3 {[%emt 0:00:27]} 38. axb3 Rxb3+ {[%emt 0:00:01]} 39. Kf4 {[%emt 0:00:58]} g5+ {[%emt 0:00:08]} 40. Ke4 {[%emt 0:00:20]} Be6 {[%emt 0:00:23]} (40... Rb2 $14) 41. Nd4 {[%emt 0:30:56]} Rb6 {[%emt 0:04:30]} 42. Rc2 {[%emt 0:00:00]} Rd6 {[%emt 0:00:59]} 43. f4 {[%emt 0:00:00]} Kg7 $2 {[%emt 0:01:01]} (43... Bg4 $16 {was worth a try.} 44. h4 gxh4) 44. Rc5 $2 {[%emt 0:00:00]} (44. fxg5 $1 $18 {and the rest is easy.} hxg5 45. Nxe6+ fxe6 46. Ke5) 44... Kf6 {[%emt 0:00:47]} 45. Kd3 {[%emt 0:00:00]} gxf4 {[%emt 0:03:07]} 46. gxf4 {[%emt 0:00:00]} Ra6 {[%emt 0:00:09]} 47. Ke4 {[%emt 0:00:00]} Bg4 {[%emt 0:02:16]} 48. Rc2 {[%emt 0:00:00]} Ra4 {[%emt 0:08:45] aiming for ...Bf5+.} 49. Rb2 {[%emt 0:02:06]} h5 {[%emt 0:00:51]} 50. Rd2 {[%emt 0:05:32]} (50. e3 $16) 50... Bf5+ {[%emt 0:01:58]} 51. Kf3 {[%emt 0:00:54]} Ra3+ {[%emt 0:00:07]} 52. e3 {[%emt 0:01:10]} Bg4+ {[%emt 0:01:02]} 53. Ke4 {[%emt 0:00:03]} Ra4 {[%emt 0:01:24]} 54. Rb2 {[%emt 0:00:19]} Bf5+ {[%emt 0:01:10]} 55. Kd5 {[%emt 0:00:46]} (55. Kf3 $1 $16 {Rb6+ would be deadly.} Bg4+ 56. Kg3) 55... Be6+ $11 {[%emt 0:00:37]} 56. Ke4 {[%emt 0:00:17]} (56. Kc5 $11) 56... Bf5+ $16 {[%emt 0:00:02]} 57. Kf3 $1 {[%emt 0:00:05] And now Rb6+ would win.} Bg4+ {[%emt 0:00:03]} 58. Kf2 {[%emt 0:00:11]} ({White should try} 58. Kg3 $16) 58... Kg7 {[%emt 0:00:59]} 59. Kg3 {[%emt 0:00:26]} Ra3 {[%emt 0:02:52]} 60. Rb3 {[%emt 0:00:11]} Ra2 {[%emt 0:00:22]} (60... Ra1 $16) 61. h3 $1 $18 {[%emt 0:01:11]} Bd1 {[%emt 0:00:11]} 62. Rb6 {[%emt 0:01:11]} Ra3 {[%emt 0:00:45]} 63. Kh4 {[%emt 0:03:00]} Kh7 {[%emt 0:00:51]} 64. Rb1 {[%emt 0:00:26]} Ba4 {[%emt 0:02:40]} 65. Rb4 $1 {[%emt 0:01:18]} ({Much less strong is} 65. Kxh5 $6 Rxe3 66. Kg5 Re4 $14) 65... Be8 {[%emt 0:00:59]} 66. Rb3 {[%emt 0:01:30]} ({Less strong is} 66. Kxh5 Rxe3 67. Kg5 Rxh3 $14) 66... Ra5 {[%emt 0:00:36]} (66... Rxb3 $16 67. Nxb3 Kg6) 67. f5 {[%emt 0:00:42]} f6 {[%emt 0:01:22]} 68. Rb6 {[%emt 0:04:37]} Kg7 {[%emt 0:00:18] [#]} 69. Ne6+ $1 {[%emt 0:00:37]} Kg8 {[%emt 0:01:28][%cal Oe8f7] [#]} 70. Nd4 {[%emt 0:01:52]} (70. Rb8 $142 $1 {[%cal Rb8e8]} Ra4+ 71. Kg3) 70... Kg7 $16 {[%emt 0:00:51]} 71. Kg3 {[%emt 0:00:39]} Bf7 {[%emt 0:00:27]} 72. Rb7 {[%emt 0:00:33]} Kg8 {[%emt 0:00:15]} 73. Rb2 {[%emt 0:03:37] White is more active.} ({White should play} 73. Kf4 $16) 73... Re5 $1 $11 {[%emt 0:00:18] The position is equal.} 74. Rg2 {[%emt 0:00:49][%cal Oe3e4]} Bd5 {[%emt 0:00:53]} 75. Rg1 {[%emt 0:00:01]} Kf7 {[%emt 0:00:17]} 76. Re1 {[%emt 0:00:22]} Be4 {[%emt 0:00:16]} 77. Kf4 {[%emt 0:00:08]} Bg2 {[%emt 0:00:38]} 78. Kg3 {[%emt 0:02:31]} Be4 {[%emt 0:00:02]} 79. Rf1 {[%emt 0:00:32]} Bb7 {[%emt 0:00:38]} 80. Re1 {[%emt 0:05:59] Black escapes into a draw.   Weighted Error Value: White=0.13 (very precise) /Black=0.14 (very precise)} 1/2-1/2